[Event "SUNWAY"]
[Date "2016.12.23"]
[Round "9.12"]
[White "Santos Ruiz, Miguel"]
[Black "Swapnil, S. Dhopade"]
[Result "1/2-1/2"]
[WhiteElo "2484"]
[BlackElo "2526"]
[ECO "B12"]
[WhiteFed "ESP"]
[BlackFed "IND"]
[FCGameId "1663230185"]
[TimeControl "5400+30"]

1. e4 {[%clk 1:30:57]} c6 {[%clk 1:30:47]} 2. d4 {[%clk 1:31:19]} d5  {[%clk 1:31:12]} 3. e5 {[%clk 1:31:47]} Bf5 {[%clk 1:31:28]} 4. Nf3  {[%clk 1:32:10]} e6 {[%clk 1:31:51]} 5. Be2 {[%clk 1:32:32]} c5 {[%clk 1:31:40]}  6. Be3 {[%clk 1:32:51]} cxd4 {[%clk 1:31:29]} 7. Nxd4 {[%clk 1:33:11]} Ne7  {[%clk 1:31:52]} 8. O-O {[%clk 1:32:54]} Nbc6 {[%clk 1:32:07]} 9. Bb5  {[%clk 1:33:14]} a6 {[%clk 1:32:13]} 10. Bxc6+ {[%clk 1:32:57]} bxc6  {[%clk 1:32:36]} 11. c4 {[%clk 1:31:48]} Qd7 {[%clk 1:32:40]} 12. Nc3  {[%clk 1:30:52]} dxc4 {[%clk 1:33:03]} 13. Na4 {[%clk 1:28:34]} Nd5  {[%clk 1:33:21]} 14. Nxf5 {[%clk 1:29:00]} exf5 {[%clk 1:33:46]} 15. Rc1  {[%clk 1:29:23]} c3 {[%clk 1:34:07]} 16. Nxc3 {[%clk 1:29:50]} Nxe3  {[%clk 1:34:28]} 17. fxe3 {[%clk 1:30:02]} g6 {[%clk 1:34:53]} 18. e4  {[%clk 1:30:27]} Qxd1 {[%clk 1:26:34]} 19. Nxd1 {[%clk 1:05:53]} fxe4  {[%clk 1:21:29]} 20. Rxc6 Bg7 {[%clk 1:15:23]} 21. Rf4 {[%clk 0:47:42]} Bxe5  {[%clk 1:13:43]} 22. Rxe4 {[%clk 0:47:46]} Kd7 {[%clk 1:14:09]} 23. Rc2  {[%clk 0:42:37]} Rhe8 {[%clk 1:00:33]} 24. Rd2+ {[%clk 0:36:08]} Kc6  {[%clk 0:58:33]} 25. Nc3 {[%clk 0:36:07]} Re7 {[%clk 0:40:49]} 26. Kf2  {[%clk 0:25:25]} f5 {[%clk 0:33:23]} 27. Rc4+ {[%clk 0:22:01]} Kb7  {[%clk 0:33:52]} 28. h3 {[%clk 0:20:43]} Rc8 {[%clk 0:26:16]} 29. Rxc8  {[%clk 0:20:23]} Kxc8 {[%clk 0:26:41]} 30. Nd5 {[%clk 0:19:30]} Re6 31. Kf3  {[%clk 0:16:40]} Rd6 {[%clk 0:25:47]} 32. Rc2+ {[%clk 0:14:29]} Kb7  {[%clk 0:25:01]} 33. Ne3 {[%clk 0:14:55]} Re6 {[%clk 0:24:39]} 34. Nc4  {[%clk 0:14:37]} Bc7 {[%clk 0:24:57]} 35. Re2 {[%clk 0:12:41]} Rxe2  {[%clk 0:23:58]} 36. Kxe2 {[%clk 0:13:08]} Kc6 {[%clk 0:23:05]} 37. Kd3 Kc5  {[%clk 0:22:36]} 38. Kc3 {[%clk 0:11:09]} Kd5 {[%clk 0:19:51]} 39. Kd3 Kc5  {-error} 1/2-1/2

[Event "SUNWAY"]
[Date "2016.12.23"]
[Round "9.13"]
[White "Lorenzo De La Riva, Lazaro"]
[Black "Del Rio De Angelis, Salvador G."]
[Result "0-1"]
[WhiteElo "2373"]
[BlackElo "2530"]
[ECO "A06"]
[WhiteFed "ESP"]
[BlackFed "ESP"]
[FCGameId "-790011599"]
[TimeControl "5400+30"]

1. Nf3 {[%clk 1:26:11]} d5 2. g3 {[%clk 1:26:18]} Nf6 {[%clk 1:30:49]} 3. Bg2  {[%clk 1:26:41]} e6 {[%clk 1:31:12]} 4. O-O {[%clk 1:25:59]} Be7  {[%clk 1:31:33]} 5. b3 c5 {[%clk 1:26:31]} 6. c4 {[%clk 1:22:18]} d4 7. e3  {[%clk 1:18:24]} Nc6 {[%clk 1:26:07]} 8. exd4 {[%clk 1:18:20]} cxd4  {[%clk 1:26:14]} 9. Re1 {[%clk 1:15:14]} Nd7 {[%clk 1:26:12]} 10. d3  {[%clk 1:13:15]} e5 {[%clk 1:23:37]} 11. a3 {[%clk 1:08:45]} a5 {[%clk 1:23:51]}  12. Nbd2 {[%clk 1:09:10]} O-O {[%clk 1:22:56]} 13. Ne4 Re8 {[%clk 1:04:16]} 14.  g4 {[%clk 0:54:21]} Nf8 {[%clk 1:01:39]} 15. h3 {[%clk 0:54:22]} Ng6  {[%clk 0:59:45]} 16. Ng3 {[%clk 0:51:10]} Qc7 {[%clk 0:58:20]} 17. Ng5  {[%clk 0:48:43]} Nd8 18. N5e4 {[%clk 0:32:41]} Nh4 {[%clk 0:55:55]} 19. Ra2  {[%clk 0:29:30]} Ra6 {[%clk 0:55:11]} 20. Rae2 {[%clk 0:28:10]} Rg6  {[%clk 0:50:15]} 21. Nd2 {[%clk 0:26:20]} Nxg2 {[%clk 0:48:39]} 22. Kxg2  {[%clk 0:26:45]} Re6 {[%clk 0:46:49]} 23. Nde4 {[%clk 0:26:19]} b6  {[%clk 0:43:04]} 24. Rf1 {[%clk 0:22:31]} Bb7 {[%clk 0:41:37]} 25. f4  {[%clk 0:19:46]} exf4 {[%clk 0:42:01]} 26. Bxf4 {[%clk 0:20:12]} Qd7  {[%clk 0:42:27]} 27. a4 {[%clk 0:13:58]} Nc6 {[%clk 0:41:15]} 28. Kh2  {[%clk 0:13:57]} Nb4 29. Qd2 {[%clk 0:10:13]} Bf8 {[%clk 0:39:13]} 30. Rfe1  {[%clk 0:09:18]} Na6 {[%clk 0:37:52]} 31. Qc2 {[%clk 0:08:15]} Qc6 32. Nf5  {[%clk 0:07:35]} Nb4 {[%clk 0:30:08]} 33. Qd2 {[%clk 0:07:57]} Nxd3  {[%clk 0:20:28]} 34. Qxd3 {[%clk 0:07:32]} Rxe4 {[%clk 0:20:52]} 35. Rxe4  {[%clk 0:06:20]} Rxe4 {[%clk 0:21:15]} 36. Rxe4 {[%clk 0:06:23]} Qxe4  {[%clk 0:21:39]} 37. Qxe4 {[%clk 0:06:48]} Bxe4 {[%clk 0:22:04]} 38. Nxd4  {[%clk 0:07:04]} Bc5 {[%clk 0:22:19]} 39. Be3 {[%clk 0:07:16]} f6  {[%clk 0:19:14]} 40. Kg3 {[%clk 0:37:25]} g5 {[%clk 0:47:35]} 41. Kf2  {[%clk 0:23:20]} Kf7 {[%clk 0:47:09]} 42. Nb5 {[%clk 0:13:02]} Ke6  {[%clk 0:46:35]} 43. Nc3 {[%clk 0:10:27]} Ke5 44. Ke2 Bg2 {[%clk 0:43:56]} 45.  Bxc5 {[%clk 0:01:59]} bxc5 {[%clk 0:44:19]} 46. Ke3 {[%clk 0:02:25]} Bxh3  {[%clk 0:44:20]} 47. Ne4 {[%clk 0:02:36]} Bxg4 {[%clk 0:44:33]} 48. Nxc5  {[%clk 0:02:59]} Bc8 49. Nd3+ {[%clk 0:03:03]} Kd6 {[%clk 0:43:27]} 50. Kd4  {[%clk 0:03:28]} h5 {[%clk 0:43:47]} 51. c5+ {[%clk 0:03:54]} Kc7  {[%clk 0:43:57]} 52. b4 {[%clk 0:02:06]} Bf5 {[%clk 0:41:22]} 53. bxa5  {[%clk 0:00:37]} Bxd3 {[%clk 0:41:46]} 54. Kxd3 {[%clk 0:01:04]} h4  {[%clk 0:42:06]} 55. Ke3 {[%clk 0:01:31]} h3 {[%clk 0:41:21]} 56. Kf2  {[%clk 0:01:58]} Kb7 {[%clk 0:41:37]} 57. Kg3 {[%clk 0:01:49]} g4  {[%clk 0:42:01]} 58. Kh2 {[%clk 0:01:38]} f5 {[%clk 0:42:23]} 59. Kg3  {[%clk 0:02:03]} f4+ {[%clk 0:42:32]} 60. Kh2 {[%clk 0:02:32]} f3  {[%clk 0:42:57]} 61. Kg3 {[%clk 0:02:58]} Ka7 {[%clk 0:43:20]} 62. c6  {[%clk 0:02:16]} Ka6 {[%clk 0:43:44]} 0-1

[Event "SUNWAY"]
[Date "2016.12.23"]
[Round "9.14"]
[White "Aroshidze, Levan"]
[Black "Panelo, Marcelo"]
[Result "1/2-1/2"]
[WhiteElo "2517"]
[BlackElo "2372"]
[ECO "C95"]
[WhiteFed "ESP"]
[BlackFed "ARG"]
[FCGameId "-1880804706"]
[TimeControl "5400+30"]

1. e4 e5 {[%clk 1:30:50]} 2. Nf3 {[%clk 1:26:04]} Nc6 {[%clk 1:31:15]} 3. Bb5  {[%clk 1:26:29]} a6 {[%clk 1:31:40]} 4. Ba4 {[%clk 1:26:55]} Nf6  {[%clk 1:32:05]} 5. O-O {[%clk 1:27:15]} Be7 {[%clk 1:31:57]} 6. Re1  {[%clk 1:27:35]} b5 {[%clk 1:31:35]} 7. Bb3 {[%clk 1:27:59]} d6 {[%clk 1:31:40]}  8. c3 O-O {[%clk 1:32:04]} 9. h3 {[%clk 1:28:47]} Nb8 {[%clk 1:31:20]} 10. d4  {[%clk 1:29:08]} Nbd7 {[%clk 1:31:44]} 11. Nbd2 {[%clk 1:29:29]} Bb7  {[%clk 1:32:04]} 12. Bc2 {[%clk 1:29:52]} Re8 {[%clk 1:31:57]} 13. a4  {[%clk 1:30:12]} Bf8 {[%clk 1:31:46]} 14. Bd3 {[%clk 1:30:15]} c6  {[%clk 1:31:54]} 15. b3 {[%clk 1:30:31]} g6 16. Bb2 {[%clk 1:30:40]} Nh5  {[%clk 1:28:41]} 17. Qc2 {[%clk 1:29:49]} Nf4 {[%clk 1:25:53]} 18. Bf1  {[%clk 1:30:10]} Bg7 {[%clk 1:25:47]} 19. g3 {[%clk 1:02:06]} Ne6  {[%clk 1:25:02]} 20. b4 {[%clk 1:00:32]} Nb6 {[%clk 1:20:23]} 21. axb5 axb5  {[%clk 1:15:50]} 22. Rxa8 {[%clk 0:57:18]} Bxa8 {[%clk 1:14:54]} 23. dxe5  {[%clk 0:57:02]} dxe5 {[%clk 1:15:01]} 24. c4 {[%clk 0:57:31]} Nxc4  {[%clk 1:04:16]} 25. Nxc4 {[%clk 0:53:47]} bxc4 {[%clk 1:04:44]} 26. Qxc4  {[%clk 0:51:46]} Nd4 27. Nxd4 {[%clk 0:49:14]} exd4 {[%clk 1:03:56]} 28. Bg2  {[%clk 0:46:36]} Qb6 {[%clk 1:03:11]} 29. Rd1 {[%clk 0:36:45]} Rd8  {[%clk 0:55:59]} 30. Rd2 {[%clk 0:26:15]} Bb7 {[%clk 0:53:23]} 31. Qc5  {[%clk 0:25:52]} Qxc5 {[%clk 0:52:05]} 1/2-1/2

[Event "SUNWAY"]
[Date "2016.12.23"]
[Round "9.15"]
[White "Henderson de La Fuente, Lance"]
[Black "Lemos, Damian"]
[Result "1/2-1/2"]
[WhiteElo "2378"]
[BlackElo "2516"]
[ECO "C68"]
[WhiteFed "ESP"]
[BlackFed "ARG"]
[FCGameId "1265637756"]
[TimeControl "5400+30"]

1. e4 e5 2. Nf3 Nc6 3. Bb5 a6 4. Bxc6 dxc6 5. O-O Bd6 6. d4 exd4 7. Qxd4 f6 8.  Be3 Ne7 9. Nbd2 Be6 10. Qc3 Qd7 11. Nc4 Bxc4 12. Qxc4 Ng6 13. Rad1 O-O-O 14. Nd4  Ne5 15. Qe2 g6 16. f3 Rhe8 17. Rfe1 Qf7 18. f4 Nc4 19. b3 Nxe3 20. Qxe3 Bc5 21.  c3 Bb6 22. Qh3+ Kb8 23. f5 gxf5 24. exf5 Bxd4+ 25. cxd4 Rxd4 26. Qf3 c5 27. h3  Red8 28. Rc1 R4d5 29. Re6 Qg7 30. Rce1 Qg5 31. Re8 Qd2 32. R1e2 Qd4+ 33. Kh2  Rxe8 34. Rxe8+ Ka7 35. Re7 Rxf5 36. Qg3 Rg5 37. Qxc7 Qd5 38. Re2 h5 39. Qf4 Rf5  40. Qg3 Qc6 41. Rd2 Rd5 42. Rf2 Rg5 43. Qf3 Qc7+ 44. Kg1 Re5 45. Kh2 Qc6 46. Kg1  Qd6 1/2-1/2

[Event "SUNWAY"]
[Date "2016.12.23"]
[Round "9.16"]
[White "Petrov, Nikita"]
[Black "Nihal Sarin"]
[Result "1/2-1/2"]
[WhiteElo "2512"]
[BlackElo "2340"]
[ECO "A05"]
[WhiteFed "RUS"]
[BlackFed "IND"]
[FCGameId "1482154366"]
[TimeControl "5400+30"]

1. Nf3 {[%clk 1:30:57]} Nf6 {[%clk 1:30:51]} 2. c4 {[%clk 1:31:03]} e6  {[%clk 1:31:17]} 3. Nc3 {[%clk 1:31:08]} d5 {[%clk 1:31:42]} 4. d4  {[%clk 1:31:14]} dxc4 {[%clk 1:32:07]} 5. e4 {[%clk 1:31:10]} Bb4  {[%clk 1:32:33]} 6. Bxc4 {[%clk 1:30:34]} Nxe4 {[%clk 1:32:56]} 7. O-O  {[%clk 1:30:53]} Nxc3 {[%clk 1:33:21]} 8. bxc3 {[%clk 1:31:17]} Be7  {[%clk 1:33:46]} 9. Qe2 {[%clk 1:29:24]} O-O {[%clk 1:33:57]} 10. Rd1  {[%clk 1:29:49]} Nd7 {[%clk 1:34:19]} 11. Rd3 {[%clk 1:24:48]} b6  {[%clk 0:39:56]} 12. Ne5 {[%clk 1:17:06]} Bb7 {[%clk 0:38:28]} 13. Nxf7  {[%clk 0:57:18]} Rxf7 {[%clk 0:38:49]} 14. Qxe6 {[%clk 0:57:31]} Qe8  {[%clk 0:39:14]} 15. Re3 {[%clk 0:54:14]} Kf8 {[%clk 0:38:52]} 16. Bd2  {[%clk 0:28:14]} Nf6 {[%clk 0:33:43]} 17. Rae1 {[%clk 0:28:38]} Bd6  {[%clk 0:33:50]} 18. Qh3 {[%clk 0:23:49]} Qc6 {[%clk 0:32:29]} 19. Bxf7  {[%clk 0:23:41]} Kxf7 {[%clk 0:32:55]} 20. Qe6+ {[%clk 0:18:29]} Kf8  {[%clk 0:32:50]} 21. Rf3 {[%clk 0:18:36]} Bxh2+ {[%clk 0:31:40]} 22. Kxh2  {[%clk 0:18:55]} Qxe6 {[%clk 0:32:06]} 23. Rxe6 {[%clk 0:19:19]} Bxf3  {[%clk 0:32:31]} 24. gxf3 {[%clk 0:19:48]} Re8 {[%clk 0:32:30]} 25. Rc6  {[%clk 0:19:02]} Re2 {[%clk 0:30:19]} 26. Bf4 {[%clk 0:17:12]} Ne8  {[%clk 0:20:02]} 27. Bxc7 {[%clk 0:15:23]} Nxc7 {[%clk 0:20:16]} 28. Rxc7  {[%clk 0:15:46]} 1/2-1/2

[Event "SUNWAY"]
[Date "2016.12.23"]
[Round "9.17"]
[White "Olivares Canelles, Francisco"]
[Black "Satyapragyan, Swayangsu"]
[Result "1/2-1/2"]
[WhiteElo "2336"]
[BlackElo "2462"]
[ECO "E43"]
[WhiteFed "CUB"]
[BlackFed "IND"]
[FCGameId "1249775345"]
[TimeControl "5400+30"]

1. d4 Nf6 2. c4 e6 3. Nc3 Bb4 4. e3 b6 5. Bd3 Bb7 6. Nf3 O-O 7. O-O c5 8. Na4  cxd4 9. a3 Be7 10. exd4 d5 11. Re1 Nbd7 12. Nc3 Rc8 13. cxd5 Nxd5 14. Ne4 N5f6  15. Ng3 Re8 16. Qe2 Bf8 17. Bg5 h6 18. Bd2 g6 19. Rad1 Bg7 20. h4 Qc7 21. h5 g5  22. Ne5 Nxe5 23. dxe5 Nd7 24. Bc3 Nc5 25. Bb1 Qc6 26. f3 Na4 27. Bb4 Qc4 28.  Qxc4 Rxc4 29. b3 Rxb4 30. axb4 Nc3 31. Rd7 Bd5 32. Bc2 Rc8 33. Nf1 Na2 34. Ne3  Nxb4 35. Nxd5 Nxd5 36. Bd3 Nf4 37. Bc4 Nxh5 38. Rxa7 Nf4 39. Rb7 Bf8 40. g3 Ng6  41. Kf1 Bc5 42. f4 gxf4 43. gxf4 Nxf4 44. Re4 Nh3 45. Rh4 Ng5 46. Rxh6 Ra8 47.  Rf6 Ra1+ 48. Ke2 Rg1 49. Rf4 Rg2+ 50. Kd3 Rg3+ 51. Kc2 Re3 52. b4 Bxb4 53. Bxe6  Nxe6 54. Rxb4 Rxe5 55. R7xb6 Kg7 56. Kd1 Kg6 57. R4b5 Rxb5 58. Rxb5 1/2-1/2

[Event "SUNWAY"]
[Date "2016.12.22"]
[Round "8.2"]
[White "Narciso Dublan, Marc"]
[Black "Sasikiran, Krishnan"]
[Result "1/2-1/2"]
[WhiteElo "2508"]
[BlackElo "2661"]
[ECO "E92"]
[WhiteFed "ESP"]
[BlackFed "IND"]
[FCGameId "1311104959"]
[TimeControl "5400+30"]

1. d4 {[%clk 1:30:53]} Nf6 {[%clk 1:30:44]} 2. c4 {[%clk 1:31:07]} g6  {[%clk 1:31:09]} 3. Nc3 {[%clk 1:31:24]} Bg7 {[%clk 1:31:30]} 4. e4  {[%clk 1:31:31]} d6 {[%clk 1:31:54]} 5. Be2 {[%clk 1:31:40]} O-O  {[%clk 1:32:13]} 6. Nf3 {[%clk 1:31:56]} e5 {[%clk 1:32:33]} 7. d5 a5  {[%clk 1:32:54]} 8. Bg5 {[%clk 1:32:03]} h6 {[%clk 1:33:12]} 9. Bh4  {[%clk 1:32:03]} Na6 {[%clk 1:33:32]} 10. Nd2 {[%clk 1:32:07]} Bd7  {[%clk 1:33:16]} 11. O-O {[%clk 1:31:46]} Qe8 {[%clk 1:33:31]} 12. Kh1  {[%clk 1:31:35]} Nh7 {[%clk 1:33:38]} 13. a3 {[%clk 1:30:41]} h5  {[%clk 1:32:26]} 14. f3 {[%clk 1:30:40]} Bf6 {[%clk 1:32:41]} 15. Bxf6  {[%clk 1:24:00]} Nxf6 {[%clk 1:32:25]} 16. Qe1 {[%clk 1:17:46]} Qe7  {[%clk 1:29:15]} 17. Qf2 {[%clk 1:16:46]} Kg7 {[%clk 1:25:26]} 18. Qe3  {[%clk 1:00:49]} Rh8 {[%clk 1:11:16]} 19. Rf2 {[%clk 0:57:46]} a4  {[%clk 1:04:24]} 20. Raf1 {[%clk 0:56:25]} Raf8 {[%clk 1:03:06]} 21. Kg1  {[%clk 0:31:31]} Nc5 {[%clk 0:58:06]} 22. h3 {[%clk 0:27:59]} h4  {[%clk 0:44:12]} 23. f4 {[%clk 0:27:41]} exf4 {[%clk 0:42:56]} 24. Rxf4  {[%clk 0:27:53]} Nh5 {[%clk 0:43:03]} 25. Bxh5 {[%clk 0:19:20]} Rxh5  {[%clk 0:40:29]} 26. Nb5 {[%clk 0:14:48]} Bxb5 {[%clk 0:24:55]} 27. cxb5  {[%clk 0:15:13]} b6 {[%clk 0:22:13]} 28. Nf3 {[%clk 0:13:19]} Kg8  {[%clk 0:20:31]} 29. Nd4 {[%clk 0:07:16]} f5 {[%clk 0:18:25]} 30. Ne6  {[%clk 0:05:25]} Nxe6 {[%clk 0:15:55]} 31. exf5 {[%clk 0:04:43]} Rhxf5  {[%clk 0:09:15]} 32. Rxf5 {[%clk 0:05:06]} Rxf5 {[%clk 0:09:29]} 33. Rxf5  {[%clk 0:05:09]} gxf5 {[%clk 0:09:39]} 34. dxe6 {[%clk 0:05:24]} Kg7  {[%clk 0:08:55]} 35. Qd4+ {[%clk 0:03:54]} Kg6 {[%clk 0:09:18]} 36. Qc4  {[%clk 0:01:16]} Qg5 {[%clk 0:07:41]} 37. Qxc7 {[%clk 0:00:46]} Qe3+  {[%clk 0:08:02]} 38. Kf1 {[%clk 0:00:46]} Qd3+ {[%clk 0:07:00]} 39. Kg1  {[%clk 0:01:06]} Qe3+ {[%clk 0:07:21]} 40. Kf1 {[%clk 0:31:31]} Qd3+ 41. Kg1  {[%clk 0:28:45]} 1/2-1/2

[Event "SUNWAY"]
[Date "2016.12.22"]
[Round "8.3"]
[White "Romanov, Evgeny"]
[Black "Shyam, Sundar M."]
[Result "1/2-1/2"]
[WhiteElo "2622"]
[BlackElo "2532"]
[ECO "D38"]
[WhiteFed "RUS"]
[BlackFed "IND"]
[FCGameId "-1173898735"]
[TimeControl "5400+30"]

1. d4 Nf6 2. c4 e6 3. Nf3 d5 4. Nc3 Bb4 5. Qa4+ Nc6 6. e3 O-O 7. Bd2 dxc4 8.  Bxc4 Bd6 9. Qc2 e5 10. dxe5 Nxe5 11. Nxe5 Bxe5 12. f4 Bd6 13. O-O-O Bg4 14. e4  Bxd1 15. Rxd1 Qe8 16. e5 Bxe5 17. fxe5 Qxe5 18. Rf1 c6 19. Bf4 Qc5 20. Bb3 Rad8  21. g4 Nxg4 22. Qg2 Ne5 23. Kb1 Ng6 24. Bg5 Rd3 25. h4 Qe5 26. Rg1 Rd4 27. h5  Nf4 28. Qg3 Nd3 29. Bh6 Qxg3 30. Rxg3 g6 31. hxg6 hxg6 32. Rxg6+ Kh7 33. Rf6 Re8  34. a3 Re1+ 35. Kc2 Ne5 36. Bd2 Rh1 37. Ne2 Rd7 38. Rf5 f6 39. Rf2 Ng4 40. Rg2  Rh2 41. Rxh2+ Nxh2 42. Be6 Re7 43. Nf4 Nf3 44. Bc3 Ne5 45. b4 Rg7 46. Bc8 b6 47.  Nh5 Rg2+ 48. Kb3 Nf3 49. Nxf6+ Kg6 50. Ne4 Re2 51. Bf5+ Kf7 52. Nd6+ Ke7 53.  Nc8+ Kd8 54. Nxa7 Kc7 55. b5 cxb5 56. Nxb5+ Kc6 57. a4 Kc5 58. Bb4+ Kc6 59. Kc4  Re5 60. Nd6 Ng5 61. Bd3 Re3 62. Nf5 Rh3 63. Nd4+ Kb7 64. Be7 Rg3 65. Bf5 Rg2 66.  Kd5 Nf7 67. Ke6 Rd2 68. Be4+ Ka6 69. Nc6 Re2 70. Kd5 Rd2+ 71. Kc4 Nd6+ 72. Bxd6  Rxd6 73. Kb4 Rh6 74. Bd5 Rh4+ 75. Bc4+ Kb7 76. Ne7 Rh5 77. Bd5+ Ka6 78. Bc4+ Kb7  79. Bb5 Kc7 80. Nc6 Rh4+ 81. Kc3 Rh3+ 82. Kc4 Kd6 83. Nb4 Rh4+ 84. Kc3 Kc5 85.  Nd3+ Kd5 86. Nb2 Kc5 87. Bd7 Kd6 88. Bc8 Kc5 89. Nd3+ Kd6 90. Kb3 Kc6 91. Be6 b5  92. a5 Ra4 93. Bd7+ Kxd7 94. Nc5+ Kc6 95. Nxa4 bxa4+ 96. Kxa4 Kc5 97. a6 Kb6 98.  a7 Kxa7 1/2-1/2

[Event "SUNWAY"]
[Date "2016.12.22"]
[Round "8.4"]
[White "Zubov, Alexander"]
[Black "Van Foreest, Jorden"]
[Result "1/2-1/2"]
[WhiteElo "2606"]
[BlackElo "2605"]
[ECO "D10"]
[WhiteFed "UKR"]
[BlackFed "NED"]
[FCGameId "-1067645492"]
[TimeControl "5400+30"]

1. d4 {[%clk 1:30:27]} d5 {[%clk 1:30:53]} 2. c4 {[%clk 1:30:30]} c6  {[%clk 1:31:15]} 3. Nc3 {[%clk 1:29:39]} Nf6 {[%clk 1:31:31]} 4. e3  {[%clk 1:30:05]} g6 {[%clk 1:31:56]} 5. Nf3 {[%clk 1:30:11]} Bg7  {[%clk 1:32:20]} 6. Be2 {[%clk 1:30:20]} O-O {[%clk 1:32:42]} 7. O-O  {[%clk 1:30:47]} e6 {[%clk 1:33:05]} 8. b4 {[%clk 1:27:45]} Nbd7  {[%clk 1:33:29]} 9. a4 {[%clk 1:26:44]} Nb6 {[%clk 1:33:50]} 10. cxd5  {[%clk 1:23:37]} exd5 {[%clk 1:34:16]} 11. b5 {[%clk 1:22:51]} Re8 12. bxc6  {[%clk 1:16:05]} bxc6 {[%clk 1:26:53]} 13. Ne5 {[%clk 1:16:00]} Be6  {[%clk 1:15:06]} 14. Ba3 {[%clk 1:05:47]} Nfd7 15. Nxd7 {[%clk 1:01:26]} Qxd7  {[%clk 1:08:03]} 16. a5 {[%clk 0:59:55]} Nc4 {[%clk 1:08:27]} 17. Bc5  {[%clk 1:00:23]} Rab8 {[%clk 1:07:57]} 18. a6 {[%clk 0:58:31]} Bf5  {[%clk 1:07:33]} 19. Re1 {[%clk 0:52:56]} Nb2 {[%clk 0:59:57]} 20. Qd2  {[%clk 0:50:25]} Bh6 {[%clk 0:59:57]} 21. Nb5 cxb5 {[%clk 0:56:29]} 22. Qxb2  {[%clk 0:49:55]} b4 {[%clk 0:56:44]} 23. Qb3 {[%clk 0:46:24]} Bf8  {[%clk 0:56:17]} 24. Ra5 {[%clk 0:32:56]} Rec8 {[%clk 0:51:02]} 25. Rc1  {[%clk 0:28:10]} Be6 {[%clk 0:49:48]} 26. h3 {[%clk 0:26:29]} Qd8  {[%clk 0:49:54]} 27. Rb5 {[%clk 0:25:23]} Bxc5 {[%clk 0:39:01]} 28. Rxb8  {[%clk 0:20:42]} Rxb8 {[%clk 0:39:21]} 29. Rxc5 {[%clk 0:21:10]} Qb6  {[%clk 0:37:02]} 30. h4 {[%clk 0:16:20]} Rc8 {[%clk 0:36:16]} 31. Qc2  {[%clk 0:09:01]} Qb8 {[%clk 0:29:50]} 32. Qb2 {[%clk 0:08:14]} Rxc5  {[%clk 0:28:33]} 33. dxc5 {[%clk 0:08:43]} b3 {[%clk 0:28:46]} 34. h5  {[%clk 0:08:11]} gxh5 {[%clk 0:27:28]} 35. Bd3 {[%clk 0:07:12]} Qb4  {[%clk 0:23:58]} 36. Qf6 {[%clk 0:05:51]} b2 {[%clk 0:21:48]} 1/2-1/2

[Event "SUNWAY"]
[Date "2016.12.22"]
[Round "8.5"]
[White "Kamsky, Gata"]
[Black "Del Rio De Angelis, Salvador G."]
[Result "1-0"]
[WhiteElo "2661"]
[BlackElo "2530"]
[ECO "A40"]
[WhiteFed "USA"]
[BlackFed "ESP"]
[FCGameId "1133504603"]
[TimeControl "5400+30"]

1. d4 {[%clk 1:30:24]} e6 {[%clk 1:30:45]} 2. Nf3 {[%clk 1:30:13]} Nf6  {[%clk 1:30:28]} 3. Bf4 {[%clk 1:30:34]} c5 {[%clk 1:29:37]} 4. e3  {[%clk 1:30:48]} b6 {[%clk 1:29:32]} 5. Nbd2 {[%clk 1:28:00]} Be7  {[%clk 1:29:16]} 6. h3 {[%clk 1:27:14]} O-O 7. c3 {[%clk 1:25:34]} Ba6  {[%clk 1:27:05]} 8. Bxa6 {[%clk 1:24:49]} Nxa6 {[%clk 1:27:27]} 9. Qe2  {[%clk 1:24:56]} Nb8 {[%clk 1:27:14]} 10. e4 {[%clk 1:16:26]} d5  {[%clk 1:23:11]} 11. e5 Nfd7 {[%clk 1:23:28]} 12. h4 {[%clk 1:16:31]} Qc8  {[%clk 1:22:00]} 13. Bg5 {[%clk 1:09:22]} Re8 {[%clk 1:21:39]} 14. Bxe7  {[%clk 1:08:49]} Rxe7 {[%clk 1:22:02]} 15. h5 h6 {[%clk 1:18:47]} 16. g4  {[%clk 1:01:09]} Qa6 {[%clk 1:08:28]} 17. Rg1 {[%clk 0:45:40]} Qxe2+  {[%clk 1:03:23]} 18. Kxe2 {[%clk 0:46:07]} Nc6 {[%clk 1:02:26]} 19. g5  {[%clk 0:45:28]} hxg5 20. Rxg5 {[%clk 0:45:44]} Kh7 {[%clk 0:52:07]} 21. Rag1  {[%clk 0:43:08]} f6 {[%clk 0:51:53]} 22. exf6 {[%clk 0:42:52]} gxf6  {[%clk 0:51:53]} 23. Rg6 {[%clk 0:39:33]} e5 {[%clk 0:43:01]} 24. dxc5  {[%clk 0:39:50]} Rf7 {[%clk 0:35:23]} 25. Nf1 {[%clk 0:37:08]} Nxc5  {[%clk 0:32:03]} 26. Ne3 {[%clk 0:37:09]} Ne7 {[%clk 0:32:22]} 27. Nh4  {[%clk 0:37:23]} Ne6 {[%clk 0:29:45]} 28. Nef5 {[%clk 0:37:17]} Nxf5  {[%clk 0:29:16]} 29. Nxf5 {[%clk 0:37:43]} Ng5 {[%clk 0:29:36]} 30. Rh6+  {[%clk 0:36:11]} Kg8 {[%clk 0:29:59]} 31. Ne3 {[%clk 0:36:36]} Rd8  {[%clk 0:24:21]} 32. Ng4 {[%clk 0:36:54]} Kg7 {[%clk 0:23:24]} 33. Rg6+  {[%clk 0:36:32]} Kf8 {[%clk 0:23:47]} 34. Nxe5 {[%clk 0:30:53]} 1-0

[Event "SUNWAY"]
[Date "2016.12.22"]
[Round "8.6"]
[White "Ivanisevic, Ivan"]
[Black "Aroshidze, Levan"]
[Result "1-0"]
[WhiteElo "2648"]
[BlackElo "2517"]
[ECO "E00"]
[WhiteFed "SRB"]
[BlackFed "ESP"]
[FCGameId "-1613861602"]
[TimeControl "5400+30"]

1. d4 {[%clk 1:30:58]} Nf6 {[%clk 1:30:51]} 2. c4 {[%clk 1:31:23]} e6  {[%clk 1:31:15]} 3. Bg5 {[%clk 1:31:47]} Bb4+ {[%clk 1:19:17]} 4. Nd2  {[%clk 1:32:08]} h6 {[%clk 1:19:40]} 5. Bh4 {[%clk 1:32:32]} g5 {[%clk 1:15:14]}  6. Bg3 {[%clk 1:32:56]} Ne4 {[%clk 1:13:00]} 7. Nf3 {[%clk 1:33:19]} h5  {[%clk 1:06:38]} 8. Qc2 {[%clk 1:31:32]} Nxd2 {[%clk 1:00:45]} 9. Nxd2  {[%clk 1:31:53]} Nc6 {[%clk 1:00:51]} 10. d5 {[%clk 1:18:44]} h4  {[%clk 0:58:59]} 11. dxc6 {[%clk 1:18:03]} hxg3 {[%clk 0:58:32]} 12. fxg3  {[%clk 1:18:07]} bxc6 {[%clk 0:51:47]} 13. e3 {[%clk 1:13:57]} Rb8  {[%clk 0:44:49]} 14. a3 {[%clk 0:55:53]} Bd6 {[%clk 0:39:59]} 15. Qc3  {[%clk 0:43:36]} f6 {[%clk 0:38:09]} 16. Nf3 {[%clk 0:41:33]} Bxg3+  {[%clk 0:30:51]} 17. Kd2 {[%clk 0:41:57]} Qe7 {[%clk 0:20:31]} 18. c5  {[%clk 0:38:57]} d6 {[%clk 0:15:51]} 19. Bd3 {[%clk 0:38:15]} Be5  {[%clk 0:16:16]} 20. Nxe5 {[%clk 0:38:37]} dxe5 {[%clk 0:16:42]} 21. Kc2  {[%clk 0:33:40]} Kf7 {[%clk 0:15:12]} 22. Raf1 {[%clk 0:26:46]} Kg7  {[%clk 0:14:38]} 23. h4 {[%clk 0:23:36]} Rxh4 {[%clk 0:07:17]} 24. g3  {[%clk 0:22:35]} e4 {[%clk 0:06:18]} 25. gxh4 {[%clk 0:22:13]} exd3+  {[%clk 0:06:44]} 26. Kb1 {[%clk 0:19:45]} g4 {[%clk 0:06:58]} 27. h5  {[%clk 0:19:24]} Ba6 {[%clk 0:05:17]} 28. Rf4 {[%clk 0:15:26]} e5  {[%clk 0:05:26]} 29. Rxg4+ {[%clk 0:15:33]} Kh8 {[%clk 0:05:48]} 30. e4  {[%clk 0:11:34]} Qd7 {[%clk 0:04:59]} 31. Rg2 1-0